[Event "*** Titled Tuesday Blitz"]
[Site "Chess.com"]
[Date "2021.02.02"]
[Round "1"]
[White "KruHor"]
[Black "Camels1981"]
[Result "1-0"]
[WhiteElo "2589"]
[BlackElo "2285"]
[TimeControl "180+1"]
[EndTime "10:07:24 PST"]
[Termination "KruHor won by resignation"]

1. e4 {[%clk 0:02:59.3]} 1... c5 {[%clk 0:02:59.1]} 2. Nf3 {[%clk 0:02:58.7]}
2... d6 {[%clk 0:02:51.4]} 3. Bc4 {[%clk 0:02:57.6]} 3... e6 {[%clk 0:02:50.9]}
4. O-O {[%clk 0:02:56.7]} 4... Be7 {[%clk 0:02:50]} 5. d4 {[%clk 0:02:54.3]}
5... cxd4 {[%clk 0:02:49.2]} 6. Qxd4 {[%clk 0:02:53.7]} 6... Nf6 {[%clk
0:02:49.5]} 7. Nc3 {[%clk 0:02:49.5]} 7... O-O {[%clk 0:02:48.9]} 8. h3 {[%clk
0:02:46.3]} 8... a6 {[%clk 0:02:47.2]} 9. a4 {[%clk 0:02:40.8]} 9... Nc6 {[%clk
0:02:41.3]} 10. Qe3 {[%clk 0:02:39.6]} 10... Qc7 {[%clk 0:02:28]} 11. Qe2 {[%clk
0:02:38.4]} 11... Ne5 {[%clk 0:02:22.8]} 12. Bb3 {[%clk 0:02:34.9]} 12... Bd7
{[%clk 0:02:21.1]} 13. Bf4 {[%clk 0:02:25.9]} 13... b5 {[%clk 0:02:13.9]} 14.
axb5 {[%clk 0:02:24.8]} 14... axb5 {[%clk 0:02:13.7]} 15. Bxe5 {[%clk
0:02:02.7]} 15... dxe5 {[%clk 0:02:10.4]} 16. Nxb5 {[%clk 0:02:02.2]} 16... Bxb5
{[%clk 0:02:07.4]} 17. Qxb5 {[%clk 0:02:01.3]} 17... Nxe4 {[%clk 0:02:07.4]} 18.
Qxe5 {[%clk 0:01:57.3]} 18... Qxe5 {[%clk 0:02:05.7]} 19. Nxe5 {[%clk
0:01:56.7]} 19... Nd2 {[%clk 0:02:05.7]} 20. Rfd1 {[%clk 0:01:50.4]} 20... Nxb3
{[%clk 0:01:51.2]} 21. cxb3 {[%clk 0:01:44.6]} 21... Bf6 {[%clk 0:01:32.4]} 22.
Rxa8 {[%clk 0:01:39.9]} 22... Rxa8 {[%clk 0:01:31.3]} 23. Nc4 {[%clk 0:01:39.3]}
23... g6 {[%clk 0:01:25.4]} 24. Kf1 {[%clk 0:01:38.1]} 24... Rb8 {[%clk
0:01:25.4]} 25. Rd3 {[%clk 0:01:37.4]} 25... Kg7 {[%clk 0:01:11.3]} 26. Ke2
{[%clk 0:01:37.1]} 26... Ra8 {[%clk 0:01:07.3]} 27. Rd7 {[%clk 0:01:30]} 27...
Rb8 {[%clk 0:01:04]} 28. Nd6 {[%clk 0:01:25.7]} 28... Bxb2 {[%clk 0:01:03.1]}
29. Rxf7+ {[%clk 0:01:24]} 29... Kg8 {[%clk 0:01:02.2]} 30. Rb7 {[%clk
0:01:21.4]} 30... Rd8 {[%clk 0:00:58.4]} 31. Ne4 {[%clk 0:01:20.6]} 31... Be5
{[%clk 0:00:52.6]} 32. f4 {[%clk 0:01:18.1]} 32... Bg7 {[%clk 0:00:47.1]} 33. g4
{[%clk 0:01:09.8]} 33... Rd4 {[%clk 0:00:46.9]} 34. Ke3 {[%clk 0:01:09.1]} 34...
Rd1 {[%clk 0:00:47.5]} 35. g5 {[%clk 0:01:03.2]} 35... Re1+ {[%clk 0:00:43.7]}
36. Kd3 {[%clk 0:01:02.8]} 36... Rf1 {[%clk 0:00:43.6]} 37. Nc5 {[%clk
0:00:48.8]} 37... Rf3+ {[%clk 0:00:31.9]} 38. Ke4 {[%clk 0:00:46.3]} 38... Rxh3
{[%clk 0:00:28]} 39. Nxe6 {[%clk 0:00:45.1]} 39... Bb2 {[%clk 0:00:28.2]} 40. b4
{[%clk 0:00:43.1]} 40... Bc1 {[%clk 0:00:27]} 41. b5 {[%clk 0:00:41.3]} 41...
Re3+ {[%clk 0:00:26]} 42. Kd5 {[%clk 0:00:40.2]} 42... Rd3+ {[%clk 0:00:26.3]}
43. Kc6 {[%clk 0:00:38]} 43... Ba3 {[%clk 0:00:26.1]} 44. Rd7 {[%clk 0:00:36.2]}
44... Re3 {[%clk 0:00:25.2]} 45. Rd8+ {[%clk 0:00:33.9]} 45... Kf7 {[%clk
0:00:24.5]} 46. Nc7 {[%clk 0:00:30.5]} 46... Rc3+ {[%clk 0:00:19.9]} 47. Kb7
{[%clk 0:00:30]} 47... Be7 {[%clk 0:00:20]} 48. Rd7 {[%clk 0:00:29.1]} 48... Rc4
{[%clk 0:00:18.1]} 49. Nd5 {[%clk 0:00:27.9]} 1-0

[Event "*** Titled Tuesday Blitz"]
[Site "Chess.com"]
[Date "2021.02.02"]
[Round "1"]
[White "kingofthenil"]
[Black "tteshan"]
[Result "1-0"]
[WhiteElo "2652"]
[BlackElo "2345"]
[TimeControl "180+1"]
[EndTime "10:07:25 PST"]
[Termination "kingofthenil won by resignation"]

1. e4 {[%clk 0:03:00.9]} 1... c5 {[%clk 0:02:59.4]} 2. d3 {[%clk 0:02:59.6]}
2... Nc6 {[%clk 0:02:58.6]} 3. g3 {[%clk 0:03:00.1]} 3... g6 {[%clk 0:02:58.4]}
4. Bg2 {[%clk 0:02:59.3]} 4... Bg7 {[%clk 0:02:58.5]} 5. f4 {[%clk 0:02:59.6]}
5... e6 {[%clk 0:02:57.2]} 6. Nf3 {[%clk 0:02:59.8]} 6... Nge7 {[%clk
0:02:57.4]} 7. O-O {[%clk 0:03:00.5]} 7... d5 {[%clk 0:02:57.2]} 8. c3 {[%clk
0:03:00.9]} 8... Rb8 {[%clk 0:02:55.3]} 9. Na3 {[%clk 0:02:59]} 9... b5 {[%clk
0:02:53.1]} 10. Nc2 {[%clk 0:02:57.4]} 10... O-O {[%clk 0:02:47.2]} 11. e5
{[%clk 0:02:45.9]} 11... b4 {[%clk 0:02:41.1]} 12. cxb4 {[%clk 0:02:39.6]} 12...
Nxb4 {[%clk 0:02:33.5]} 13. Be3 {[%clk 0:02:39.6]} 13... Qa5 {[%clk 0:02:19.6]}
14. Nxb4 {[%clk 0:02:33.3]} 14... cxb4 {[%clk 0:02:14.6]} 15. Qd2 {[%clk
0:02:29.5]} 15... Bd7 {[%clk 0:02:06.7]} 16. Nd4 {[%clk 0:02:23.5]} 16... Rfc8
{[%clk 0:01:57.4]} 17. a3 {[%clk 0:02:19.6]} 17... Nc6 {[%clk 0:01:19.9]} 18.
Nb3 {[%clk 0:02:00.2]} 18... Qc7 {[%clk 0:01:09.4]} 19. a4 {[%clk 0:01:53.3]}
19... Na5 {[%clk 0:01:06.1]} 20. Nc5 {[%clk 0:01:44.3]} 20... Qd8 {[%clk
0:00:55.2]} 21. Qf2 {[%clk 0:01:28.3]} 21... Bf8 {[%clk 0:00:44.8]} 22. Rfc1
{[%clk 0:01:24.2]} 22... Bxc5 {[%clk 0:00:37.4]} 23. Rxc5 {[%clk 0:01:25.1]}
23... Rxc5 {[%clk 0:00:35.3]} 24. Bxc5 {[%clk 0:01:25.5]} 24... Nb3 {[%clk
0:00:36]} 25. Re1 {[%clk 0:01:12.1]} 25... Rc8 {[%clk 0:00:25.3]} 26. Bxa7
{[%clk 0:01:10.3]} 26... Qa5 {[%clk 0:00:24.8]} 27. Bb6 {[%clk 0:01:04]} 27...
Qxa4 {[%clk 0:00:24.1]} 28. h4 {[%clk 0:01:04.7]} 28... h5 {[%clk 0:00:21.2]}
29. Bf3 {[%clk 0:01:04.9]} 29... Qb5 {[%clk 0:00:19.1]} 30. Rd1 {[%clk 0:01:02]}
30... Nc1 {[%clk 0:00:16.9]} 31. Qe3 {[%clk 0:00:57.6]} 31... Na2 {[%clk
0:00:13.9]} 32. Bd4 {[%clk 0:00:56.1]} 32... Rc2 {[%clk 0:00:13.9]} 33. Rd2
{[%clk 0:00:54]} 33... b3 {[%clk 0:00:12.9]} 34. Bd1 {[%clk 0:00:52.5]} 34...
Rc1 {[%clk 0:00:11.1]} 35. Kf2 {[%clk 0:00:47.4]} 35... Qb7 {[%clk 0:00:09.1]}
36. Bf3 {[%clk 0:00:45.8]} 36... Nb4 {[%clk 0:00:08.4]} 37. Bc3 {[%clk
0:00:36.1]} 37... Nc2 {[%clk 0:00:08.2]} 38. Qc5 {[%clk 0:00:36.5]} 38... Rb1
{[%clk 0:00:07.1]} 39. g4 {[%clk 0:00:30.3]} 39... hxg4 {[%clk 0:00:06.8]} 40.
Bxg4 {[%clk 0:00:31.2]} 40... Qc6 {[%clk 0:00:06.4]} 41. Qe7 {[%clk 0:00:30.6]}
41... Qc8 {[%clk 0:00:05.4]} 42. h5 {[%clk 0:00:30.2]} 42... gxh5 {[%clk
0:00:05.1]} 43. Bxh5 {[%clk 0:00:29.4]} 43... Qf8 {[%clk 0:00:05.7]} 44. Qxd7
{[%clk 0:00:28.1]} 44... Qh6 {[%clk 0:00:06.1]} 45. Qxf7+ {[%clk 0:00:27.8]}
45... Kh8 {[%clk 0:00:06.5]} 46. Qf6+ {[%clk 0:00:27.9]} 46... Qxf6 {[%clk
0:00:06.6]} 47. exf6 {[%clk 0:00:28.8]} 1-0

[Event "*** Titled Tuesday Blitz"]
[Site "Chess.com"]
[Date "2021.02.02"]
[Round "1"]
[White "ShapkinAnatoliy"]
[Black "Nils_03"]
[Result "1-0"]
[WhiteElo "2628"]
[BlackElo "2329"]
[TimeControl "180+1"]
[EndTime "10:07:28 PST"]
[Termination "ShapkinAnatoliy won by checkmate"]

1. d4 {[%clk 0:02:59.1]} 1... Nf6 {[%clk 0:02:17.9]} 2. c4 {[%clk 0:02:57]} 2...
e6 {[%clk 0:02:17.9]} 3. g3 {[%clk 0:02:56.3]} 3... c5 {[%clk 0:02:16.4]} 4. d5
{[%clk 0:02:56.1]} 4... exd5 {[%clk 0:02:16.1]} 5. cxd5 {[%clk 0:02:57]} 5... g6
{[%clk 0:02:16.1]} 6. Nc3 {[%clk 0:02:56.5]} 6... d6 {[%clk 0:02:16.1]} 7. Nf3
{[%clk 0:02:56.4]} 7... Bg7 {[%clk 0:02:16.1]} 8. Bg2 {[%clk 0:02:57]} 8... O-O
{[%clk 0:02:16.4]} 9. O-O {[%clk 0:02:57.2]} 9... Re8 {[%clk 0:02:15]} 10. Nd2
{[%clk 0:02:56.9]} 10... a6 {[%clk 0:02:12.4]} 11. a4 {[%clk 0:02:55.9]} 11...
Bg4 {[%clk 0:02:04.5]} 12. h3 {[%clk 0:02:50.1]} 12... Bd7 {[%clk 0:02:00.9]}
13. Nc4 {[%clk 0:02:48.2]} 13... Bc8 {[%clk 0:01:31.6]} 14. Bf4 {[%clk
0:02:46.7]} 14... Nh5 {[%clk 0:01:29.5]} 15. Bxd6 {[%clk 0:02:41.8]} 15... Nd7
{[%clk 0:01:27.8]} 16. g4 {[%clk 0:02:27.6]} 16... Nhf6 {[%clk 0:01:23.4]} 17.
e4 {[%clk 0:02:20.5]} 17... Nb6 {[%clk 0:01:19.5]} 18. Nxb6 {[%clk 0:02:10.5]}
18... Qxb6 {[%clk 0:01:20.4]} 19. e5 {[%clk 0:02:05.9]} 19... Nd7 {[%clk
0:01:18.2]} 20. a5 {[%clk 0:02:04.3]} 20... Qxb2 {[%clk 0:01:10.6]} 21. Na4
{[%clk 0:01:51.6]} 21... Qb4 {[%clk 0:01:10.1]} 22. e6 {[%clk 0:01:41.5]} 22...
fxe6 {[%clk 0:01:04.8]} 23. dxe6 {[%clk 0:01:40.8]} 23... Ne5 {[%clk 0:00:59.4]}
24. Nb6 {[%clk 0:01:24.4]} 24... Bxe6 {[%clk 0:00:48.9]} 25. Nxa8 {[%clk
0:01:17.3]} 25... Rxa8 {[%clk 0:00:49.8]} 26. Bd5 {[%clk 0:01:01.5]} 26... Bxd5
{[%clk 0:00:43.3]} 27. Qxd5+ {[%clk 0:01:02.4]} 27... Nf7 {[%clk 0:00:44.2]} 28.
Rae1 {[%clk 0:00:58.4]} 28... Qd4 {[%clk 0:00:36.2]} 29. Qxb7 {[%clk 0:00:42.5]}
29... Rd8 {[%clk 0:00:18.8]} 30. Bg3 {[%clk 0:00:42.8]} 30... h5 {[%clk
0:00:14.1]} 31. Qxa6 {[%clk 0:00:40.9]} 31... hxg4 {[%clk 0:00:12.6]} 32. Rd1
{[%clk 0:00:40.3]} 32... Qxd1 {[%clk 0:00:11.7]} 33. Rxd1 {[%clk 0:00:40.1]}
33... Rxd1+ {[%clk 0:00:12.6]} 34. Kh2 {[%clk 0:00:39.8]} 34... gxh3 {[%clk
0:00:12.6]} 35. Qc8+ {[%clk 0:00:28.7]} 35... Kh7 {[%clk 0:00:12.2]} 36. a6
{[%clk 0:00:28.2]} 36... Ra1 {[%clk 0:00:11.1]} 37. Qxh3+ {[%clk 0:00:25.3]}
37... Bh6 {[%clk 0:00:10.4]} 38. Qd7 {[%clk 0:00:24.5]} 38... Kg7 {[%clk
0:00:09.1]} 39. Be5+ {[%clk 0:00:24.2]} 39... Kg8 {[%clk 0:00:08.2]} 40. Bxa1
{[%clk 0:00:25.1]} 40... Ng5 {[%clk 0:00:06.9]} 41. Qe8+ {[%clk 0:00:23.7]}
41... Bf8 {[%clk 0:00:04.8]} 42. Qxg6+ {[%clk 0:00:23.6]} 42... Bg7 {[%clk
0:00:03.2]} 43. Qxg7# {[%clk 0:00:24.5]} 1-0

[Event "*** Titled Tuesday Blitz"]
[Site "Chess.com"]
[Date "2021.02.02"]
[Round "1"]
[White "Aslanov_Umid"]
[Black "dukicz123"]
[Result "0-1"]
[WhiteElo "2299"]
[BlackElo "2604"]
[TimeControl "180+1"]
[EndTime "10:07:28 PST"]
[Termination "dukicz123 won by resignation"]

1. e4 {[%clk 0:03:00.9]} 1... e5 {[%clk 0:02:59.6]} 2. Nf3 {[%clk 0:03:00.8]}
2... Nc6 {[%clk 0:02:54.6]} 3. Bc4 {[%clk 0:03:01]} 3... Nf6 {[%clk 0:02:54]} 4.
d3 {[%clk 0:03:00.3]} 4... Bc5 {[%clk 0:02:53.6]} 5. c3 {[%clk 0:03:00.2]} 5...
O-O {[%clk 0:02:52.8]} 6. O-O {[%clk 0:03:00.7]} 6... d5 {[%clk 0:02:53.3]} 7.
exd5 {[%clk 0:03:01.2]} 7... Nxd5 {[%clk 0:02:54.2]} 8. h3 {[%clk 0:02:59.9]}
8... Kh8 {[%clk 0:02:32.6]} 9. a4 {[%clk 0:02:58.3]} 9... a6 {[%clk 0:02:31.8]}
10. Qe2 {[%clk 0:02:55]} 10... f6 {[%clk 0:02:25.2]} 11. b4 {[%clk 0:02:53.9]}
11... Be7 {[%clk 0:02:18.3]} 12. Bb2 {[%clk 0:02:48.6]} 12... Nf4 {[%clk
0:02:16.6]} 13. Qe3 {[%clk 0:02:43.5]} 13... Qe8 {[%clk 0:02:07.8]} 14. Kh1
{[%clk 0:02:13.2]} 14... Qh5 {[%clk 0:02:03.3]} 15. Nh2 {[%clk 0:02:11]} 15...
Qg6 {[%clk 0:01:42.9]} 16. Rg1 {[%clk 0:02:06.9]} 16... Bf5 {[%clk 0:01:38.5]}
17. d4 {[%clk 0:02:00.9]} 17... Be4 {[%clk 0:01:32.8]} 18. Nf3 {[%clk
0:01:51.2]} 18... Nd5 {[%clk 0:00:41.8]} 19. Bxd5 {[%clk 0:01:44.9]} 19... Bxd5
{[%clk 0:00:42.7]} 20. Nbd2 {[%clk 0:01:42]} 20... e4 {[%clk 0:00:42.7]} 21. Nh4
{[%clk 0:01:13.4]} 21... Qh5 {[%clk 0:00:41.3]} 22. c4 {[%clk 0:00:15.3]} 22...
Bxc4 {[%clk 0:00:25.5]} 23. Nxc4 {[%clk 0:00:16.1]} 23... Qxh4 {[%clk
0:00:25.8]} 24. Nd2 {[%clk 0:00:16]} 24... f5 {[%clk 0:00:25.9]} 25. Nf1 {[%clk
0:00:14.5]} 25... Nxb4 {[%clk 0:00:24.5]} 26. Rc1 {[%clk 0:00:11]} 26... Nd5
{[%clk 0:00:24.5]} 27. Qg3 {[%clk 0:00:10.4]} 27... f4 {[%clk 0:00:16.8]} 28.
Qxh4 {[%clk 0:00:10]} 28... Bxh4 {[%clk 0:00:17.7]} 29. Nh2 {[%clk 0:00:07]}
29... Bxf2 {[%clk 0:00:17.7]} 30. Rgf1 {[%clk 0:00:06.8]} 30... e3 {[%clk
0:00:15.6]} 31. Ng4 {[%clk 0:00:07.4]} 31... Bg3 {[%clk 0:00:13.7]} 32. Rc5
{[%clk 0:00:07.5]} 32... c6 {[%clk 0:00:13.7]} 33. Bc3 {[%clk 0:00:06]} 33... e2
{[%clk 0:00:14]} 34. Rg1 {[%clk 0:00:06.1]} 34... Rae8 {[%clk 0:00:14.3]} 35.
Be1 {[%clk 0:00:05.1]} 35... Re4 {[%clk 0:00:14.6]} 36. Bxg3 {[%clk 0:00:04.3]}
36... fxg3 {[%clk 0:00:15.5]} 37. Rcc1 {[%clk 0:00:04.4]} 37... Rxd4 {[%clk
0:00:15.6]} 38. Rce1 {[%clk 0:00:03.8]} 38... Re8 {[%clk 0:00:15.4]} 39. h4
{[%clk 0:00:02.7]} 39... Rxg4 {[%clk 0:00:14.7]} 0-1

[Event "*** Titled Tuesday Blitz"]
[Site "Chess.com"]
[Date "2021.02.02"]
[Round "1"]
[White "kidagent"]
[Black "Djager97"]
[Result "0-1"]
[WhiteElo "2263"]
[BlackElo "2573"]
[TimeControl "180+1"]
[EndTime "10:07:28 PST"]
[Termination "Djager97 won by resignation"]

1. e4 {[%clk 0:03:00.9]} 1... e5 {[%clk 0:02:59.4]} 2. Nf3 {[%clk 0:03:01.1]}
2... Nc6 {[%clk 0:02:58.9]} 3. Bb5 {[%clk 0:03:01.1]} 3... a6 {[%clk 0:02:59]}
4. Ba4 {[%clk 0:03:00.9]} 4... Nf6 {[%clk 0:02:59.1]} 5. O-O {[%clk 0:03:00.4]}
5... Be7 {[%clk 0:02:59.7]} 6. Re1 {[%clk 0:03:00.5]} 6... b5 {[%clk 0:03:00.3]}
7. Bb3 {[%clk 0:03:00.8]} 7... d6 {[%clk 0:03:01.2]} 8. a4 {[%clk 0:03:00.3]}
8... b4 {[%clk 0:02:51.4]} 9. c3 {[%clk 0:03:00.1]} 9... Bg4 {[%clk 0:02:41.3]}
10. h3 {[%clk 0:02:58.7]} 10... Bh5 {[%clk 0:02:41]} 11. d4 {[%clk 0:02:47.6]}
11... Bxf3 {[%clk 0:02:05.5]} 12. gxf3 {[%clk 0:02:45.3]} 12... O-O {[%clk
0:02:01.7]} 13. d5 {[%clk 0:02:37.4]} 13... Nb8 {[%clk 0:02:00.9]} 14. cxb4
{[%clk 0:02:36.4]} 14... Nh5 {[%clk 0:02:00.6]} 15. Nc3 {[%clk 0:02:31.6]} 15...
Bg5 {[%clk 0:01:58]} 16. Ne2 {[%clk 0:02:27.8]} 16... Nd7 {[%clk 0:01:50.3]} 17.
Kh2 {[%clk 0:02:18.9]} 17... Bxc1 {[%clk 0:01:42.8]} 18. Qxc1 {[%clk 0:02:18.2]}
18... Qh4 {[%clk 0:01:43.7]} 19. Qe3 {[%clk 0:02:08.2]} 19... f5 {[%clk
0:01:43.2]} 20. exf5 {[%clk 0:01:45.9]} 20... Rxf5 {[%clk 0:01:38]} 21. Rg1
{[%clk 0:01:44.5]} 21... Raf8 {[%clk 0:01:27.5]} 22. Rg4 {[%clk 0:01:36.9]}
22... Qf6 {[%clk 0:01:28]} 23. Ng1 {[%clk 0:01:35.3]} 23... Nf4 {[%clk
0:01:08.8]} 24. Rc1 {[%clk 0:01:20.7]} 24... h5 {[%clk 0:00:41.6]} 25. Rxf4
{[%clk 0:01:09.2]} 25... exf4 {[%clk 0:00:31.7]} 26. Qe6+ {[%clk 0:01:09.1]}
26... Rf7 {[%clk 0:00:23]} 27. Rxc7 {[%clk 0:01:07.7]} 27... Ne5 {[%clk
0:00:20.4]} 28. Rc8+ {[%clk 0:01:01.1]} 28... Kh7 {[%clk 0:00:20.5]} 29. Bc2
{[%clk 0:00:55.5]} 29... Ng6 {[%clk 0:00:15.9]} 30. Bxf5 {[%clk 0:00:54]} 30...
Qxf5 {[%clk 0:00:16.8]} 31. Qxf5 {[%clk 0:00:52.4]} 31... Rxf5 {[%clk
0:00:17.7]} 32. Rc6 {[%clk 0:00:45.1]} 32... Rxd5 {[%clk 0:00:17.9]} 33. Rxa6
{[%clk 0:00:45.2]} 33... Rd2 {[%clk 0:00:18.6]} 34. Kg2 {[%clk 0:00:42.8]} 34...
Rxb2 {[%clk 0:00:16.1]} 35. b5 {[%clk 0:00:42.4]} 35... Ne5 {[%clk 0:00:14.7]}
36. Rxd6 {[%clk 0:00:41.1]} 36... Nc4 {[%clk 0:00:13.8]} 37. Rd4 {[%clk
0:00:37.2]} 37... Ne3+ {[%clk 0:00:14.7]} 38. Kh1 {[%clk 0:00:36.9]} 38... Rxf2
{[%clk 0:00:14]} 39. Rxf4 {[%clk 0:00:36.8]} 39... Nf1 {[%clk 0:00:13.7]} 40.
Ne2 {[%clk 0:00:28.7]} 40... Rxe2 {[%clk 0:00:13.9]} 41. b6 {[%clk 0:00:23.6]}
41... Rb2 {[%clk 0:00:13.1]} 42. a5 {[%clk 0:00:23.4]} 42... Ng3+ {[%clk
0:00:12.6]} 43. Kg1 {[%clk 0:00:23.6]} 43... Ne2+ {[%clk 0:00:13.5]} 44. Kf1
{[%clk 0:00:23.6]} 44... Nxf4 {[%clk 0:00:14.4]} 45. h4 {[%clk 0:00:21.8]} 45...
Nd5 {[%clk 0:00:14.9]} 46. Ke1 {[%clk 0:00:20.4]} 46... Nxb6 {[%clk 0:00:15.3]}
47. axb6 {[%clk 0:00:20.1]} 47... Rxb6 {[%clk 0:00:15.3]} 0-1

[Event "*** Titled Tuesday Blitz"]
[Site "Chess.com"]
[Date "2021.02.02"]
[Round "1"]
[White "SergeiAza"]
[Black "ParvizGasimov"]
[Result "1-0"]
[WhiteElo "2786"]
[BlackElo "2408"]
[TimeControl "180+1"]
[EndTime "10:07:29 PST"]
[Termination "SergeiAza won on time"]

1. e4 {[%clk 0:03:00.9]} 1... e6 {[%clk 0:02:57.8]} 2. d4 {[%clk 0:03:00.4]}
2... d5 {[%clk 0:02:57.1]} 3. Nd2 {[%clk 0:03:01.1]} 3... c5 {[%clk 0:02:56.9]}
4. Ngf3 {[%clk 0:03:01.1]} 4... cxd4 {[%clk 0:02:56.4]} 5. Nxd4 {[%clk
0:03:00.1]} 5... Nf6 {[%clk 0:02:55.7]} 6. exd5 {[%clk 0:02:58.8]} 6... Nxd5
{[%clk 0:02:54.8]} 7. N2f3 {[%clk 0:02:46.9]} 7... Bb4+ {[%clk 0:02:53.4]} 8.
Bd2 {[%clk 0:02:41.5]} 8... O-O {[%clk 0:02:49.8]} 9. Bc4 {[%clk 0:02:38]} 9...
Nc6 {[%clk 0:02:25.1]} 10. Nxc6 {[%clk 0:02:31]} 10... bxc6 {[%clk 0:02:26]} 11.
O-O {[%clk 0:02:28.2]} 11... Bxd2 {[%clk 0:02:21.5]} 12. Qxd2 {[%clk 0:02:25.6]}
12... Rb8 {[%clk 0:02:21.7]} 13. Bb3 {[%clk 0:02:17]} 13... Qf6 {[%clk
0:02:11.4]} 14. c3 {[%clk 0:02:12.4]} 14... Ba6 {[%clk 0:02:07.8]} 15. Rfe1
{[%clk 0:02:11.8]} 15... Rfd8 {[%clk 0:02:05.7]} 16. Qd4 {[%clk 0:01:56.9]}
16... Nf4 {[%clk 0:01:38.9]} 17. Qxa7 {[%clk 0:01:44]} 17... Be2 {[%clk
0:00:54.4]} 18. Qe3 {[%clk 0:01:22.6]} 18... Rd3 {[%clk 0:00:17.6]} 19. Qe5
{[%clk 0:01:15.4]} 19... Nh3+ {[%clk 0:00:06.1]} 20. gxh3 {[%clk 0:01:07.4]}
20... Qg6+ {[%clk 0:00:05.3]} 21. Ng5 {[%clk 0:00:57.7]} 21... Rb5 {[%clk
0:00:04.4]} 22. Rxe2 {[%clk 0:00:46.8]} 22... Rxe5 {[%clk 0:00:04]} 23. Rxe5
{[%clk 0:00:47.6]} 23... Rd2 {[%clk 0:00:03.7]} 24. Kh1 {[%clk 0:00:24]} 24...
Qf6 {[%clk 0:00:03.7]} 25. Ra5 {[%clk 0:00:16.4]} 25... h6 {[%clk 0:00:02.8]}
26. Ra8+ {[%clk 0:00:14]} 26... Rd8 {[%clk 0:00:03.3]} 27. Rxd8+ {[%clk
0:00:13.7]} 27... Qxd8 {[%clk 0:00:03.9]} 28. Nf3 {[%clk 0:00:13.1]} 28... Qd3
{[%clk 0:00:03.6]} 29. Kg2 {[%clk 0:00:11]} 29... Qe2 {[%clk 0:00:03.7]} 30. Re1
{[%clk 0:00:08.8]} 30... Qxb2 {[%clk 0:00:03.5]} 31. Re3 {[%clk 0:00:08.4]}
31... Kf8 {[%clk 0:00:01.4]} 32. Ne5 {[%clk 0:00:08.6]} 32... Qc1 {[%clk
0:00:01]} 33. Nxc6 {[%clk 0:00:07.9]} 33... Qa3 {[%clk 0:00:01.5]} 34. Ne5
{[%clk 0:00:07.9]} 34... Qc5 {[%clk 0:00:01.6]} 35. Nd7+ {[%clk 0:00:07.8]} 1-0

[Event "*** Titled Tuesday Blitz"]
[Site "Chess.com"]
[Date "2021.02.02"]
[Round "1"]
[White "FMKonstantin_Twitch"]
[Black "Gerryisplaying"]
[Result "1-0"]
[WhiteElo "2616"]
[BlackElo "2314"]
[TimeControl "180+1"]
[EndTime "10:07:31 PST"]
[Termination "FMKonstantin_Twitch won by resignation"]

1. e4 {[%clk 0:02:57.3]} 1... d5 {[%clk 0:02:55.1]} 2. exd5 {[%clk 0:02:55.7]}
2... Qxd5 {[%clk 0:02:56]} 3. Nc3 {[%clk 0:02:56.2]} 3... Qa5 {[%clk 0:02:56]}
4. Bc4 {[%clk 0:02:55.5]} 4... Nf6 {[%clk 0:02:55.7]} 5. h3 {[%clk 0:02:54.6]}
5... a6 {[%clk 0:02:49]} 6. Nf3 {[%clk 0:02:54]} 6... b5 {[%clk 0:02:49.2]} 7.
Bb3 {[%clk 0:02:53.3]} 7... e6 {[%clk 0:02:45.5]} 8. d4 {[%clk 0:02:53]} 8...
Bb7 {[%clk 0:02:44.3]} 9. O-O {[%clk 0:02:49.7]} 9... Nbd7 {[%clk 0:02:42.6]}
10. Bd2 {[%clk 0:02:41.8]} 10... Qb6 {[%clk 0:02:36.7]} 11. Be3 {[%clk
0:02:39.6]} 11... c5 {[%clk 0:02:33.1]} 12. a4 {[%clk 0:02:38.4]} 12... b4
{[%clk 0:02:21.1]} 13. a5 {[%clk 0:02:34.1]} 13... Qc7 {[%clk 0:02:20.6]} 14.
Na4 {[%clk 0:02:21.6]} 14... c4 {[%clk 0:02:14.7]} 15. Ba2 {[%clk 0:02:21.7]}
15... Bd6 {[%clk 0:02:10.6]} 16. Nb6 {[%clk 0:02:19.9]} 16... Nxb6 {[%clk
0:02:03.3]} 17. axb6 {[%clk 0:02:20.8]} 17... Qc6 {[%clk 0:02:03.8]} 18. Qe2
{[%clk 0:01:54.5]} 18... Rc8 {[%clk 0:02:01.1]} 19. c3 {[%clk 0:01:47.6]} 19...
b3 {[%clk 0:01:46.4]} 20. Bb1 {[%clk 0:01:46.7]} 20... O-O {[%clk 0:01:44.4]}
21. Re1 {[%clk 0:01:26]} 21... h6 {[%clk 0:01:43.4]} 22. Qf1 {[%clk 0:01:24.7]}
22... Nd5 {[%clk 0:01:40.5]} 23. Nd2 {[%clk 0:01:23.1]} 23... Nxb6 {[%clk
0:01:35]} 24. Ne4 {[%clk 0:01:15.6]} 24... Bb8 {[%clk 0:01:30.9]} 25. Nc5 {[%clk
0:01:01.2]} 25... Nd5 {[%clk 0:01:18.9]} 26. Be4 {[%clk 0:00:53.2]} 26... Qc7
{[%clk 0:01:18.5]} 27. g3 {[%clk 0:00:48]} 27... Nxe3 {[%clk 0:01:14.4]} 28.
Rxe3 {[%clk 0:00:47.4]} 28... Bxe4 {[%clk 0:01:14.4]} 29. Rxe4 {[%clk
0:00:48.3]} 29... a5 {[%clk 0:01:09.5]} 30. Qxc4 {[%clk 0:00:45.8]} 30... Qb6
{[%clk 0:00:54.8]} 31. Qxb3 {[%clk 0:00:43.2]} 31... Qc6 {[%clk 0:00:52.7]} 32.
Rxa5 {[%clk 0:00:30.9]} 32... Bd6 {[%clk 0:00:45.7]} 33. Ra6 {[%clk 0:00:28.3]}
33... Qc7 {[%clk 0:00:46]} 34. Qb7 {[%clk 0:00:26.3]} 34... Bxg3 {[%clk
0:00:43.3]} 35. Qxc7 {[%clk 0:00:22.2]} 35... Bxc7 {[%clk 0:00:42.7]} 36. b4
{[%clk 0:00:22.1]} 36... Ra8 {[%clk 0:00:40.9]} 37. Re2 {[%clk 0:00:16.8]} 37...
Rxa6 {[%clk 0:00:36.3]} 38. Nxa6 {[%clk 0:00:17.7]} 38... Bf4 {[%clk 0:00:35.6]}
39. Nc5 {[%clk 0:00:16.9]} 39... Ra8 {[%clk 0:00:35.2]} 40. Rb2 {[%clk
0:00:17.1]} 40... Ra1+ {[%clk 0:00:31.8]} 41. Kg2 {[%clk 0:00:17.5]} 41... Rc1
{[%clk 0:00:31.8]} 42. Nd3 {[%clk 0:00:17.2]} 42... Rxc3 {[%clk 0:00:25.9]} 43.
Nxf4 {[%clk 0:00:16.4]} 43... Rc4 {[%clk 0:00:26.5]} 44. Ne2 {[%clk 0:00:12.6]}
44... Kf8 {[%clk 0:00:22.9]} 45. b5 {[%clk 0:00:11.2]} 45... Rc7 {[%clk
0:00:23.2]} 46. b6 {[%clk 0:00:10.6]} 46... Rb7 {[%clk 0:00:23.5]} 47. Nc3
{[%clk 0:00:11.3]} 47... Ke7 {[%clk 0:00:22.8]} 48. Na4 {[%clk 0:00:11.1]} 1-0